fUST/lending_fUST_20260114
["ID","MTS","AMOUNT","RATE_DAILY","PERIOD"]
[401680870,1768331432484,-500.0,0.0001418,2]
[401680871,1768331432498,-500.0,0.0001418,2]
[401680872,1768331432509,-500.0,0.0001418,2]
[401680873,1768331432520,-560.05182494,0.0001418,2]
[401680874,1768331432530,-500.0,0.0001418,2]
[401680875,1768331432541,-500.0,0.0001418,2]
[401680876,1768331432551,-500.0,0.0001418,2]
[401680877,1768331432562,-500.0,0.0001418,2]
[401680878,1768331432573,-500.0,0.0001418,2]
[401680879,1768331432583,-500.0,0.0001418,2]
[401680880,1768331432593,-500.0,0.0001418,2]
[401680881,1768331432603,-500.0,0.0001418,2]
[401680882,1768331432613,-500.0,0.0001418,2]
[401680883,1768331432624,-500.0,0.0001418,2]
[401680884,1768331432635,-543.04057326,0.0001418,2]
[401680885,1768331432646,-537.30530942,0.0001418,2]
[401680886,1768331432655,-500.0,0.0001418,2]
[401680887,1768331432665,-400.0,0.0001418,2]
[401680888,1768331432675,-162.89803317,0.0001418,2]
[401680889,1768331432684,-3972.61201038,0.00014181,2]
[401680890,1768331432698,-12949.57566468,0.00014181,2]
[401680891,1768331432748,314.35,0.00010466,2]
[401680892,1768331433144,349.27,0.00010827,2]
[401680901,1768331438219,-27256.41889589,0.00014181,2]
[401680902,1768331438231,-27973.81055204,0.00014181,2]
[401680903,1768331438244,-500.0,0.00014181,2]
[401680904,1768331438255,-6266.55930988,0.00014181,2]
[401680905,1768331438273,-2152.23329974,0.00014181,2]
[401680906,1768331438285,-2012.70208524,0.00014181,2]
[401681490,1768331446250,-1981.82924777,0.00014181,2]
[401681492,1768331446261,-4428.0,0.00014181,2]
[401682768,1768331459172,-4890.03663709,0.00014181,2]
[401683010,1768331462241,-10000.01,0.00014181,2]
[401683916,1768331471186,-500.11515149,0.00013273,2]
[401683920,1768331471213,-500.0,0.00013273,2]
[401683923,1768331471240,-500.0,0.00013699,2]
[401683927,1768331471267,-500.0,0.00013699,2]
[401683931,1768331471293,-300.0,0.0001418,2]
[401683935,1768331471321,-500.0,0.0001418,2]
[401683938,1768331471348,-500.0,0.0001418,2]
[401683952,1768331471470,-3399.77969702,0.00014181,2]
[401684345,1768331477285,-500.0,0.0001418,2]
[401684346,1768331477323,-500.0,0.0001418,2]
[401684347,1768331477359,-500.0,0.0001418,2]
[401684348,1768331477393,-500.0,0.0001418,2]
[401684349,1768331477429,-500.0,0.0001418,2]
[401684350,1768331477462,-500.0,0.0001418,2]
[401684351,1768331477497,-500.0,0.0001418,2]
[401684352,1768331477534,-500.0,0.0001418,2]
[401684353,1768331477570,-199.14090683,0.0001418,2]
[401684354,1768331477605,-500.0,0.0001418,2]
[401684365,1768331477793,-601.72818634,0.00014181,2]
[401684367,1768331483359,-159.74,0.00012329,2]
[401684368,1768331483394,-500.0,0.00013699,2]
[401684369,1768331483430,-500.0,0.0001418,2]
[401684370,1768331483466,-500.0,0.0001418,2]
[401684371,1768331483503,-421.0272,0.0001418,2]
[401684372,1768331483623,-5838.4756,0.00014181,2]
[401684373,1768331499547,174.41,9.464e-05,2]
[401684374,1768331499979,209.3,9.843e-05,2]
[401684375,1768331500387,244.18,0.00010221,2]
[401684376,1768331500776,279.06,0.000106,2]
[401684377,1768331501158,313.94,0.00010979,2]
[401684378,1768331501562,348.83,0.00011357,2]
[401684379,1768331538354,542.31950031,0.0001,2]
[401684380,1768331583170,161.98565488,0.00013273,2]
[401684381,1768331585147,500.0,0.00013273,2]
[401684382,1768331643087,500.0,0.00013273,2]
[401684383,1768331643148,500.0,0.00013273,2]
[401684384,1768331646010,500.0,0.00013273,2]
[401684385,1768331646315,500.0,0.00013273,2]
[401684386,1768331646345,500.09394672,0.00013273,2]
[401684387,1768331646699,500.24269708,0.00013273,2]
[401684388,1768331670576,2207.9235642,0.00013134,2]
[401684389,1768331701146,161.34,7.821e-05,2]
[401684390,1768331703769,167.61597056,0.00013273,2]
[401684392,1768331883533,500.0,0.00013273,2]
[401684393,1768331883781,500.20570792,0.00013273,2]
[401684394,1768331897451,-300.0,0.00013673,2]
[401684395,1768331897481,-307.39720493,0.00013686,2]
[401684396,1768331897508,-500.0,0.00013699,2]
[401684397,1768331897535,-500.0,0.00013699,2]
[401684398,1768331897562,-500.0,0.00013699,2]
[401684399,1768331897588,-1413.96693906,0.00013727,2]
[401684400,1768331897615,-181.514,0.00013897,2]
[401684401,1768331897643,-300.0,0.00014047,2]
[401684402,1768331903265,-4222.0283252,0.00014048,2]
[401684403,1768331903296,-755.9533496,0.00014106,2]
[401684404,1768331906272,-44.0466504,0.00014106,2]
[401684405,1768331906301,-466.16923132,0.00014121,2]
[401684406,1768331906437,-1748.75105762,0.00014121,2]
[401684407,1768331953056,-251.75000003,0.00013273,2]
[401684408,1768331957510,-195.14123004,0.00013273,2]
[401684409,1768331960011,-53.10876993,0.00013273,2]
[401684410,1768331960032,-108.20188514,0.00013273,2]
[401684411,1768331964828,-109.91464871,0.00013273,2]
[401684412,1768331964853,-219.3197171,0.00013273,2]
[401684413,1768331966455,152.62,7.516e-05,2]
[401684414,1768331966864,171.7,7.785e-05,2]
[401684415,1768331967784,-211.04553964,0.00013273,2]
[401684424,1768332095198,-69.63474326,0.00013273,2]
[401684425,1768332095228,-217.23459817,0.00013273,2]
[401684426,1768332095259,-500.0,0.00013273,2]
[401684427,1768332095303,-500.0,0.00013273,2]
[401684428,1768332095335,-305.15208544,0.00013273,2]
[401684429,1768332095367,-608.0,0.00013273,2]
[401684430,1768332095396,-156.79661316,0.00013327,2]
[401684431,1768332095425,-281.52081757,0.00013327,2]
[401684432,1768332095454,-928.20758505,0.00013599,2]
[401684433,1768332095679,-2585.39629713,0.00013599,2]
[401684434,1768332101088,-1500.0,0.00012609,2]
[401684435,1768332101116,-281.52081757,0.00013599,2]
[401684436,1768332101145,-250.0,0.00013673,2]
[401684437,1768332101174,-1200.0,0.00013698,2]
[401684438,1768332101201,-300.0,0.00013698,2]
[401684439,1768332103933,181.514,0.00013698,2]
[401684440,1768332122263,300.0,0.00013698,2]
[401684441,1768332182214,300.0,0.00013698,2]
[401684442,1768332201963,-9218.496,0.00013699,2]
[401684443,1768332207671,-10000.01,0.00013699,2]
[401684444,1768332221627,10000.01,0.00013143,2]
[401684445,1768332221649,10000.01,0.00013143,2]
[401684446,1768332223038,-347.21568077,0.00013143,2]
[401684447,1768332225895,-1881.60000433,0.00013143,2]
[401684448,1768332227550,333.33,0.00012329,2]
[401684449,1768332238138,487.71,0.00012329,2]
[401684450,1768332242206,300.0,0.00013698,2]
[401684451,1768332248672,406.43,0.00012329,2]
[401684452,1768332256401,-500.0,0.00013699,2]
[401684453,1768332256432,-551.09382566,0.00013699,2]
[401684454,1768332256463,-500.0,0.00013699,2]
[401684455,1768332256493,-549.48250315,0.00013699,2]
[401684456,1768332257153,-4271.38734238,0.00013744,2]
[401684457,1768332257247,-10000.01,0.00013744,2]
[401684458,1768332257386,-10000.01,0.00013744,2]
[401684459,1768332259417,-338.69,0.00012329,2]
[401684460,1768332259452,-9322.63,0.00013744,2]
[401684461,1768332259526,-10000.01,0.00013744,2]
[401684462,1768332271617,-282.24,0.00012329,2]
[401684463,1768332272955,-352.62629118,0.00013132,2]
[401684464,1768332277055,-195.41,0.00012384,2]
[401684465,1768332280044,493.82,0.00012329,2]
[401684466,1768332280612,-445.41479527,0.00012384,2]
[401684467,1768332282044,-185.44336633,0.00012384,2]
[401684468,1768332286776,-586.28622308,0.00012384,2]
[401684469,1768332286804,-4288.15147592,0.00013132,2]
[401684470,1768332292812,-411.52,0.00012329,2]
[401684471,1768332292841,-251.134602,0.00013132,2]
[401684472,1768332296505,187.89,7.045e-05,2]
[401684473,1768332296917,234.87,7.338e-05,2]
[401684474,1768332297313,281.84,7.632e-05,2]
[401684475,1768332297697,328.81,7.925e-05,2]
[401684476,1768332298096,375.79,8.219e-05,2]
[401684477,1768332298526,422.76,8.512e-05,2]
[401684478,1768332298916,469.73,8.806e-05,2]
[401684479,1768332301092,342.93,0.00012329,2]
[401684480,1768332302169,300.0,0.00013697,2]
[401684481,1768332320369,-285.78,0.00012329,2]
[401684482,1768332322052,238.15,0.00012329,2]
[401684483,1768332332492,198.46,0.00012329,2]
[401684484,1768332335536,-1200.0,0.00013272,2]
[401684485,1768332335568,-500.0,0.00013273,2]
[401684486,1768332335602,-500.0,0.00013273,2]
[401684487,1768332335632,-500.70542485,0.00013273,2]
[401684488,1768332335663,-500.0,0.00013273,2]
[401684489,1768332335693,-500.0,0.00013273,2]
[401684490,1768332335723,-500.0,0.00013273,2]
[401684491,1768332335754,-500.0,0.00013273,2]
[401684492,1768332335783,-98.5991503,0.00013273,2]
[401684493,1768332336089,-401.4008497,0.00013273,2]
[401684494,1768332336119,-500.0,0.00013273,2]
[401684495,1768332336149,-500.0,0.00013273,2]
[401684496,1768332336180,-500.0,0.00013273,2]
[401684497,1768332336212,-500.0,0.00013273,2]
[401684498,1768332336245,-500.0,0.00013273,2]
[401684499,1768332336276,-185.44336633,0.00013273,2]
[401684500,1768332342950,165.38,0.00012329,2]
[401684501,1768332353446,826.93,0.00012329,2]
[401684502,1768332362526,300.0,0.00013598,2]
[401684503,1768332367276,195.41,0.00013273,2]
[401684504,1768332371913,159.11,0.00011029,2]
[401684505,1768332377319,2179.49156794,0.00013499,2]
[401684506,1768332377343,2553.26545664,0.00013499,2]
[401684508,1768332391764,500.0,0.00013598,2]
[401684509,1768332391853,500.0,0.00013598,2]
[401684510,1768332391922,500.0,0.00013598,2]
[401684511,1768332391977,500.0,0.00013598,2]
[401684512,1768332392034,272.03627747,0.00013598,2]
[401684513,1768332392065,500.0,0.00013598,2]
[401684514,1768332392116,500.0,0.00013598,2]
[401684515,1768332392162,500.0,0.00013598,2]
[401684516,1768332392281,500.0,0.00013598,2]
[401684517,1768332392321,500.0,0.00013598,2]
[401684518,1768332392486,500.0,0.00013598,2]
[401684519,1768332392551,500.0,0.00013598,2]
[401684520,1768332398920,500.0,0.00013598,2]
[401684521,1768332398953,500.0,0.00013598,2]
[401684522,1768332398986,500.0,0.00013598,2]
[401684523,1768332399035,174.70826589,0.00013598,2]
[401684524,1768332399061,325.29173411,0.00013598,2]
[401684525,1768332399096,157.89191111,0.00013598,2]
[401684526,1768332399131,500.0,0.00013598,2]
[401684527,1768332399167,500.0,0.00013598,2]
[401684528,1768332399200,251.49358315,0.00013598,2]
[401684529,1768332399231,500.0,0.00013598,2]
[401684530,1768332399265,500.0,0.00013598,2]
[401684531,1768332399297,500.0,0.00013598,2]
[401684532,1768332399329,418.135099,0.00013598,2]
[401684533,1768332399367,500.0,0.00013598,2]
[401684534,1768332399404,500.0,0.00013598,2]
[401684535,1768332399442,500.0,0.00013598,2]
[401684536,1768332399473,174.27004641,0.00013598,2]
[401684537,1768332399504,500.0,0.00013598,2]
[401684538,1768332416728,500.0,0.00013598,2]
[401684539,1768332416760,500.0,0.00013598,2]
[401684540,1768332416791,500.0,0.00013598,2]
[401684541,1768332416824,213.34247458,0.00013598,2]
[401684542,1768332416854,154.35575128,0.00013598,2]
[401684543,1768332416884,500.0,0.00013598,2]
[401684544,1768332416915,500.0,0.00013598,2]
[401684545,1768332416950,500.0,0.00013598,2]
[401684546,1768332416980,500.0,0.00013598,2]
[401684547,1768332417010,305.22940036,0.00013598,2]
[401684548,1768332417039,194.77059964,0.00013598,2]
[401684549,1768332422523,300.0,0.00013598,2]
[401684550,1768332423736,500.0,0.00013273,2]
[401684551,1768332423779,500.0,0.00013273,2]
[401684552,1768332423848,500.0,0.00013273,2]
[401684553,1768332424734,204.03810168,0.00013598,2]
[401684554,1768332424780,500.0,0.00013598,2]
[401684555,1768332425125,394.4634959,0.00013598,2]
[401684556,1768332426731,525.38080859,0.00013273,2]
[401684557,1768332431289,500.0,0.00013273,2]
[401684558,1768332433561,288.28805216,0.00013273,2]
[401684559,1768332433972,378.31407373,0.00013273,2]
[401684560,1768332434676,225.77683162,0.00013598,2]
[401684562,1768332440696,500.0,0.00013273,2]
[401684563,1768332441487,500.0,0.00013273,2]
[401684564,1768332482264,300.0,0.00013598,2]
[401684565,1768332488414,3521.30514597,0.000125,2]
[401684567,1768332542315,300.0,0.00013598,2]
[401684568,1768332543630,598.53187916,0.00013273,2]
[401684571,1768332545797,500.0,0.00013273,2]
[401684572,1768332545952,500.0,0.00013273,2]
[401684573,1768332551940,500.0,0.00013273,2]
[401684585,1768332560730,500.0,0.00013273,2]
[401684586,1768332561881,362.41320877,0.00013273,2]
[401684587,1768332561905,137.58679123,0.00013273,2]
[401684592,1768332602168,300.0,0.00013598,2]
[401684593,1768332631656,500.0,0.00013598,2]
[401684594,1768332631690,500.0,0.00013598,2]
[401684595,1768332631724,500.0,0.00013598,2]
[401684596,1768332631755,500.0,0.00013598,2]
[401684597,1768332631896,500.0,0.00013598,2]
[401684617,1768332632055,500.0,0.00013598,2]
[401684618,1768332632210,-9619.91025749,0.00013599,2]
[401684619,1768332632224,-38487.1635965,0.00013599,2]
[401684620,1768332632268,500.0,0.00013598,2]
[401684621,1768332632280,-67858.44155322,0.00013599,2]
[401684622,1768332632292,-890.18,0.00013599,2]
[401684623,1768332632322,-1400.08699331,0.00013599,2]
[401684632,1768332632384,500.0,0.00013598,2]
[401684641,1768332632443,500.0,0.00013598,2]
[401684655,1768332632537,500.0,0.00013598,2]
[401684660,1768332632570,211.30286364,0.00013598,2]
[401684665,1768332632603,500.0,0.00013598,2]
[401684670,1768332632696,500.0,0.00013598,2]
[401684712,1768332638541,-75157.03998901,0.00013599,2]
[401684715,1768332638554,-853.015828,0.00013599,2]
[401684921,1768332640694,-3e-08,0.00013599,2]
[401685397,1768332644918,-2003.2858229,0.00013599,2]
[401685540,1768332646327,-1178.75262132,0.00013599,2]
[401685547,1768332646383,-14393.74899774,0.00013599,2]
[401685553,1768332646439,-369.0962695,0.00013599,2]
[401686661,1768332657693,3351.12034513,0.00013499,2]
[401686664,1768332657726,790.04205136,0.00013499,2]
[401687082,1768332662630,300.0,0.00013598,2]
[401687725,1768332669764,405.59216637,0.00013273,2]
[401687928,1768332672009,8504.37578227,0.00012674,2]
[401687931,1768332672032,10000.01,0.00012674,2]
[401687934,1768332672053,10000.01,0.00012674,2]
[401687937,1768332672074,10000.01,0.00012674,2]
[401687941,1768332672096,10000.01,0.00012674,2]
[401687944,1768332672116,10000.01,0.00012674,2]
[401687947,1768332672139,10000.01,0.00012674,2]
[401687950,1768332672161,10000.01,0.00012674,2]
[401687954,1768332672182,8367.44026953,0.00012674,2]
[401688411,1768332677479,500.0,0.00013273,2]
[401688436,1768332678699,500.0,0.00013273,2]
[401688437,1768332682824,632.56973047,0.00012329,2]
[401688438,1768332697586,-166.14026953,0.00012329,2]
[401688439,1768332697764,-983.60021315,0.00013499,2]
[401688440,1768332697797,-500.0,0.00013598,2]
[401688441,1768332697828,-500.0,0.00013598,2]
[401688442,1768332697862,-200.0,0.00013598,2]
[401688443,1768332703926,181.328,0.00013327,2]
[401688444,1768332705309,163.72,7.584e-05,2]
[401688445,1768332705619,187.11,7.865e-05,2]
[401688446,1768332706036,210.5,8.146e-05,2]
[401688447,1768332706606,233.89,8.427e-05,2]
[401688448,1768332726071,4323.98103464,0.00013591,2]
[401688449,1768332726094,3191.76875026,0.00013591,2]
[401688450,1768332751730,300.0,0.00012696,2]
[401688451,1768332782654,300.0,0.00013598,2]
[401688452,1768332787919,500.0,0.00013598,2]
[401688453,1768332787949,500.0,0.00013598,2]
[401688454,1768332787979,202.84339804,0.00013598,2]
[401688455,1768332788009,500.0,0.00013598,2]
[401688456,1768332788040,187.86674462,0.00013598,2]
[401688457,1768332788069,155.93272251,0.00013598,2]
[401688458,1768332788102,500.0,0.00013598,2]
[401688459,1768332788135,505.02772207,0.00013598,2]
[401688460,1768332788167,500.0,0.00013598,2]
[401688461,1768332788202,500.0,0.00013598,2]
[401688462,1768332788233,620.0,0.00013598,2]
[401688463,1768332788265,500.0,0.00013598,2]
[401688464,1768332788306,500.0,0.00013598,2]
[401688465,1768332798378,500.0,0.00013273,2]
[401688466,1768332799457,36.5706625,0.00013273,2]
[401688467,1768332799481,463.4293375,0.00013273,2]
[401688468,1768332830665,500.0,0.00013598,2]
[401688469,1768332830698,500.0,0.00013598,2]
[401688470,1768332830730,500.0,0.00013598,2]
[401688471,1768332830761,500.0,0.00013598,2]
[401688472,1768332830806,500.0,0.00013598,2]
[401688473,1768332830964,500.0,0.00013598,2]
[401688474,1768332830996,500.0,0.00013598,2]
[401688475,1768332831028,500.0,0.00013598,2]
[401688476,1768332831060,500.0,0.00013598,2]
[401688477,1768332831128,500.0,0.00013598,2]
[401688478,1768332831268,500.0,0.00013598,2]
[401688479,1768332831300,500.0,0.00013598,2]
[401688480,1768332831338,500.0,0.00013598,2]
[401688481,1768332831373,500.0,0.00013598,2]
[401688482,1768332831573,502.57299536,0.00013598,2]
[401688483,1768332831633,500.0,0.00013598,2]
[401688484,1768332831666,500.0,0.00013598,2]
[401688485,1768332831967,410.99689002,0.00013598,2]
[401688486,1768332831999,500.0,0.00013598,2]
[401688487,1768332832105,123.01077712,0.00013598,2]
[401688488,1768332832127,376.98922288,0.00013598,2]
[401688489,1768332832319,500.0,0.00013598,2]
[401688490,1768332832419,500.0,0.00013598,2]
[401688491,1768332832452,500.0,0.00013598,2]
[401688492,1768332832486,500.0,0.00013598,2]
[401688493,1768332832518,500.0,0.00013598,2]
[401688494,1768332832551,500.0,0.00013598,2]
[401688495,1768332832583,500.0,0.00013598,2]
[401688496,1768332832615,500.0,0.00013598,2]
[401688497,1768332832647,500.0,0.00013598,2]
[401688498,1768332832690,500.0,0.00013598,2]
[401688499,1768332832722,500.0,0.00013598,2]
[401688500,1768332832757,500.0,0.00013598,2]
[401688501,1768332832788,500.0,0.00013598,2]
[401688502,1768332832820,500.0,0.00013598,2]
[401688503,1768332832852,500.0,0.00013598,2]
[401688504,1768332832888,500.0,0.00013598,2]
[401688505,1768332832922,401.92529796,0.00013598,2]
[401688506,1768332833159,500.0,0.00013598,2]
[401688507,1768332833191,500.0,0.00013598,2]
[401688508,1768332833222,221.09547916,0.00013598,2]
[401688509,1768332833246,278.90452084,0.00013598,2]
[401688510,1768332833277,500.0,0.00013598,2]
[401688511,1768332833320,500.0,0.00013598,2]
[401688512,1768332833368,500.0,0.00013598,2]
[401688513,1768332833402,500.0,0.00013598,2]
[401688514,1768332833602,500.0,0.00013598,2]
[401688515,1768332833634,500.0,0.00013598,2]
[401688516,1768332833666,500.0,0.00013598,2]
[401688517,1768332833697,500.0,0.00013598,2]
[401688518,1768332833742,500.0,0.00013598,2]
[401688519,1768332833776,500.0,0.00013598,2]
[401688520,1768332833809,500.0,0.00013598,2]
[401688521,1768332837078,500.0,0.00013598,2]
[401688522,1768332842347,300.0,0.00013598,2]
[401688523,1768332844127,500.0,0.00013598,2]
[401688524,1768332844161,500.0,0.00013598,2]
[401688525,1768332844195,500.0,0.00013598,2]
[401688526,1768332844225,500.0,0.00013598,2]
[401688527,1768332844441,500.0,0.00013598,2]
[401688528,1768332844473,428.65171728,0.00013598,2]
[401688529,1768332844510,500.0,0.00013598,2]
[401688530,1768332844544,500.0,0.00013598,2]
[401688531,1768332844577,500.0,0.00013598,2]
[401688532,1768332844613,500.0,0.00013598,2]
[401688533,1768332844650,500.0,0.00013598,2]
[401688534,1768332844686,500.0,0.00013598,2]
[401688535,1768332844718,500.0,0.00013598,2]
[401688536,1768332844751,500.0,0.00013598,2]
[401688537,1768332844783,500.0,0.00013598,2]
[401688538,1768332844818,500.0,0.00013598,2]
[401688539,1768332844851,500.0,0.00013598,2]
[401688540,1768332844882,500.0,0.00013598,2]
[401688541,1768332844915,271.35828272,0.00013598,2]
[401688542,1768332844939,228.64171728,0.00013598,2]
[401688543,1768332844970,500.0,0.00013598,2]
[401688544,1768332845002,500.0,0.00013598,2]
[401688545,1768332845038,500.0,0.00013598,2]
[401688546,1768332845069,500.0,0.00013598,2]
[401688547,1768332845103,500.0,0.00013598,2]
[401688548,1768332845135,500.0,0.00013598,2]
[401688549,1768332845166,500.0,0.00013598,2]
[401688550,1768332845202,500.0,0.00013598,2]
[401688551,1768332845235,500.0,0.00013598,2]
[401688552,1768332845270,500.0,0.00013598,2]
[401688553,1768332845309,500.0,0.00013598,2]
[401688554,1768332845340,500.0,0.00013598,2]
[401688555,1768332845371,500.0,0.00013598,2]
[401688556,1768332845412,500.0,0.00013598,2]
[401688557,1768332845442,280.35051678,0.00013598,2]
[401688558,1768332845478,500.0,0.00013598,2]
[401688559,1768332845511,500.0,0.00013598,2]
[401688560,1768332845543,500.0,0.00013598,2]
[401688561,1768332845594,500.0,0.00013598,2]
[401688562,1768332845631,491.01776594,0.00013598,2]
[401688563,1768332845656,8.98223406,0.00013598,2]
[401688564,1768332845687,500.0,0.00013598,2]
[401688565,1768332845718,500.0,0.00013598,2]
[401688566,1768332845749,500.0,0.00013598,2]
[401688567,1768332845780,500.0,0.00013598,2]
[401688568,1768332845813,500.0,0.00013598,2]
[401688569,1768332845867,500.0,0.00013598,2]
[401688570,1768332846076,500.0,0.00013598,2]
[401688571,1768332846107,500.0,0.00013598,2]
[401688572,1768332846137,500.0,0.00013598,2]
[401688573,1768332846354,500.0,0.00013598,2]
[401688574,1768332846386,500.0,0.00013598,2]
[401688575,1768332846418,500.0,0.00013598,2]
[401688576,1768332846448,500.0,0.00013598,2]
[401688577,1768332846481,500.0,0.00013598,2]
[401688578,1768332846516,500.0,0.00013598,2]
[401688579,1768332846546,500.0,0.00013598,2]
[401688580,1768332846577,500.0,0.00013598,2]
[401688581,1768332846612,500.0,0.00013598,2]
[401688582,1768332846641,500.0,0.00013598,2]
[401688583,1768332846672,491.02776594,0.00013598,2]
[401688584,1768332846694,8.97223406,0.00013598,2]
[401688585,1768332846725,500.0,0.00013598,2]
[401688586,1768332846755,500.0,0.00013598,2]
[401688587,1768332846787,500.0,0.00013598,2]
[401688588,1768332846827,500.0,0.00013598,2]
[401688589,1768332846858,500.0,0.00013598,2]
[401688590,1768332846887,500.0,0.00013598,2]
[401688591,1768332846922,500.0,0.00013598,2]
[401688592,1768332846952,500.0,0.00013598,2]
[401688593,1768332846982,500.0,0.00013598,2]
[401688594,1768332847015,500.0,0.00013598,2]
[401688595,1768332847049,500.0,0.00013598,2]
[401688596,1768332847080,500.0,0.00013598,2]
[401688597,1768332847113,500.0,0.00013598,2]
[401688598,1768332847143,500.0,0.00013598,2]
[401688599,1768332847174,500.0,0.00013598,2]
[401688600,1768332847206,500.0,0.00013598,2]
[401688601,1768332847237,500.0,0.00013598,2]
[401688602,1768332847270,500.0,0.00013598,2]
[401688603,1768332847300,500.0,0.00013598,2]
[401688604,1768332847332,500.0,0.00013598,2]
[401688605,1768332847363,500.0,0.00013598,2]
[401688606,1768332847395,500.0,0.00013598,2]
[401688607,1768332847428,500.0,0.00013598,2]
[401688608,1768332847461,500.0,0.00013598,2]
[401688609,1768332847495,500.0,0.00013598,2]
[401688610,1768332847530,500.0,0.00013598,2]
[401688611,1768332847561,500.0,0.00013598,2]
[401688612,1768332847602,500.0,0.00013598,2]
[401688613,1768332847634,500.0,0.00013598,2]
[401688614,1768332847676,0.01,0.00013598,2]
[401688615,1768332847699,499.99,0.00013598,2]
[401688616,1768332847730,500.0,0.00013598,2]
[401688617,1768332847760,500.0,0.00013598,2]
[401688618,1768332847790,500.0,0.00013598,2]
[401688619,1768332847850,500.0,0.00013598,2]
[401688620,1768332847885,350.07671659,0.00013598,2]
[401688621,1768332847925,500.0,0.00013598,2]
[401688622,1768332847958,500.0,0.00013598,2]
[401688623,1768332847994,500.0,0.00013598,2]
[401688624,1768332848058,500.0,0.00013598,2]
[401688625,1768332848094,500.0,0.00013598,2]
[401688626,1768332848133,500.0,0.00013598,2]
[401688627,1768332848185,500.0,0.00013598,2]
[401688628,1768332848220,500.0,0.00013598,2]
[401688629,1768332848255,500.0,0.00013598,2]
[401688630,1768332848291,500.0,0.00013598,2]
[401688631,1768332848329,2149.94328341,0.00013499,2]
[401688632,1768332848354,1473.57381358,0.00013499,2]
[401688633,1768332848391,500.0,0.00013598,2]
[401688634,1768332848428,500.0,0.00013598,2]
[401688635,1768332858036,500.0,0.00013598,2]
[401688636,1768332867861,500.0,0.00013598,2]
[401688637,1768332870020,500.0,0.00013598,2]
[401688638,1768332901280,300.0,0.00013598,2]
[401688639,1768332902088,300.0,0.00013598,2]
[401688640,1768332902299,300.0,0.00013598,2]
[401688641,1768332902940,505.87242006,0.00013273,2]
[401688642,1768332905014,1200.0,0.00013598,2]
[401688643,1768332907093,278.02895934,0.00013273,2]
[401688644,1768332917966,228.8385003,0.00013499,2]
[401688645,1768332922611,288.95741207,0.00013273,2]
[401688646,1768332923768,500.0,0.00013273,2]
[401688647,1768332942047,151.0,0.000135,2]